[Event "Late-Titled-Tuesday-Blitz-October-24-2023"]
[Site "Chess.com"]
[Date "2023.10.24"]
[Round "11"]
[White "Hirna2005"]
[Black "Tunahan_Makaraci"]
[Result "0-1"]
[WhiteElo "2301"]
[BlackElo "2413"]
[TimeControl "180+1"]
[EndTime "16:06:57 PDT"]
[Termination "Tunahan_Makaraci won by resignation"]

1. e4 {[%clk 0:03:00.9]} 1... Nf6 {[%clk 0:02:58.9]} 2. e5 {[%clk 0:03:00.9]}
2... Nd5 {[%clk 0:02:59.4]} 3. Nf3 {[%clk 0:03:01.3]} 3... d6 {[%clk 0:02:59.8]}
4. d4 {[%clk 0:03:01.3]} 4... Nb6 {[%clk 0:02:57.4]} 5. Be2 {[%clk 0:02:58.4]}
5... g6 {[%clk 0:02:57.3]} 6. O-O {[%clk 0:02:57.7]} 6... Bg7 {[%clk 0:02:57.3]}
7. Bf4 {[%clk 0:02:56.2]} 7... O-O {[%clk 0:02:57.1]} 8. Bd3 {[%clk 0:02:50.7]}
8... Nc6 {[%clk 0:02:56.8]} 9. exd6 {[%clk 0:02:48.4]} 9... cxd6 {[%clk
0:02:56.9]} 10. c3 {[%clk 0:02:48.2]} 10... Bg4 {[%clk 0:02:56.5]} 11. h3 {[%clk
0:02:48]} 11... Bxf3 {[%clk 0:02:56.3]} 12. Qxf3 {[%clk 0:02:47.4]} 12... e5
{[%clk 0:02:56.1]} 13. dxe5 {[%clk 0:02:44.5]} 13... dxe5 {[%clk 0:02:57]} 14.
Bg3 {[%clk 0:02:39.7]} 14... f5 {[%clk 0:02:56.8]} 15. Rd1 {[%clk 0:02:08]}
15... e4 {[%clk 0:02:50.6]} 16. Bc4+ {[%clk 0:01:56.7]} 16... Nxc4 {[%clk
0:02:50.5]} 17. Qe2 {[%clk 0:01:56.9]} 17... Qe7 {[%clk 0:02:20.6]} 18. Qxc4+
{[%clk 0:01:56.6]} 18... Qf7 {[%clk 0:02:20.8]} 19. Qxf7+ {[%clk 0:01:33.9]}
19... Rxf7 {[%clk 0:02:19.3]} 20. Na3 {[%clk 0:01:27.1]} 20... f4 {[%clk
0:02:05.1]} 21. Bh2 {[%clk 0:01:20.7]} 21... g5 {[%clk 0:01:59.8]} 22. Nc4
{[%clk 0:01:18.9]} 22... Re7 {[%clk 0:01:56.6]} 23. Nd6 {[%clk 0:01:14.4]} 23...
Rd8 {[%clk 0:01:36.5]} 24. Nf5 {[%clk 0:00:56.1]} 24... Red7 {[%clk 0:01:36.3]}
25. Rxd7 {[%clk 0:00:54]} 25... Rxd7 {[%clk 0:01:36.3]} 26. h4 {[%clk
0:00:54.3]} 26... h6 {[%clk 0:01:32.7]} 27. hxg5 {[%clk 0:00:50]} 27... hxg5
{[%clk 0:01:32.8]} 28. Kf1 {[%clk 0:00:38.2]} 28... Rd5 {[%clk 0:01:31.8]} 29.
Nxg7 {[%clk 0:00:35.1]} 29... Kxg7 {[%clk 0:01:32.7]} 30. Ke2 {[%clk 0:00:34.9]}
30... Kg6 {[%clk 0:01:32.2]} 31. Bg1 {[%clk 0:00:33.3]} 31... Kf5 {[%clk
0:01:30.1]} 32. Rd1 {[%clk 0:00:32.5]} 32... Rxd1 {[%clk 0:01:29.4]} 33. Kxd1
{[%clk 0:00:32.8]} 33... f3 {[%clk 0:01:26]} 34. gxf3 {[%clk 0:00:30.3]} 34...
exf3 {[%clk 0:01:25.8]} 35. Bh2 {[%clk 0:00:30.5]} 35... Ke4 {[%clk 0:01:25]}
36. Kd2 {[%clk 0:00:30.1]} 36... b5 {[%clk 0:01:24]} 37. Bd6 {[%clk 0:00:26.8]}
37... g4 {[%clk 0:01:18.4]} 38. b3 {[%clk 0:00:25.7]} 38... Nd8 {[%clk
0:01:14.5]} 39. Bb8 {[%clk 0:00:21.6]} 39... a6 {[%clk 0:01:14.2]} 40. Bd6
{[%clk 0:00:20.2]} 40... Nf7 {[%clk 0:01:13.1]} 41. Bg3 {[%clk 0:00:19.5]} 41...
Ng5 {[%clk 0:01:12.1]} 42. a3 {[%clk 0:00:18.5]} 42... Ne6 {[%clk 0:01:11.8]}
43. a4 {[%clk 0:00:17.4]} 43... bxa4 {[%clk 0:01:08.9]} 44. bxa4 {[%clk
0:00:17.6]} 44... Nc5 {[%clk 0:01:09.4]} 45. a5 {[%clk 0:00:17.3]} 45... Nb3+
{[%clk 0:01:09.6]} 46. Kc2 {[%clk 0:00:16.8]} 46... Nxa5 {[%clk 0:01:10.3]} 47.
Bc7 {[%clk 0:00:15.1]} 47... Nc4 {[%clk 0:01:10]} 48. Bg3 {[%clk 0:00:14.6]}
48... a5 {[%clk 0:01:09.4]} 49. Kb3 {[%clk 0:00:15]} 49... Kd3 {[%clk
0:01:04.5]} 50. Bf4 {[%clk 0:00:13.8]} 50... Nd2+ {[%clk 0:00:57.7]} 51. Bxd2
{[%clk 0:00:13.5]} 51... Kxd2 {[%clk 0:00:56.5]} 52. c4 {[%clk 0:00:14.4]} 52...
g3 {[%clk 0:00:57.2]} 53. fxg3 {[%clk 0:00:14]} 53... f2 {[%clk 0:00:57.6]} 54.
c5 {[%clk 0:00:14.9]} 54... f1=Q {[%clk 0:00:58.5]} 55. c6 {[%clk 0:00:15.5]}
55... Qb5+ {[%clk 0:00:58.1]} 56. Ka3 {[%clk 0:00:15.1]} 56... Kc3 {[%clk
0:00:58.2]} 0-1

[Event "Late-Titled-Tuesday-Blitz-October-24-2023"]
[Site "Chess.com"]
[Date "2023.10.24"]
[Round "11"]
[White "GoltsevDmitry2000"]
[Black "balachess2006"]
[Result "1-0"]
[WhiteElo "2651"]
[BlackElo "2566"]
[TimeControl "180+1"]
[EndTime "16:07:15 PDT"]
[Termination "GoltsevDmitry2000 won by resignation"]

1. e4 {[%clk 0:02:48.8]} 1... c5 {[%clk 0:03:00.1]} 2. Nf3 {[%clk 0:02:49]} 2...
Nc6 {[%clk 0:03:00.3]} 3. d4 {[%clk 0:02:49.2]} 3... cxd4 {[%clk 0:03:01.2]} 4.
Nxd4 {[%clk 0:02:49.8]} 4... Nf6 {[%clk 0:03:01.5]} 5. Nc3 {[%clk 0:02:49.5]}
5... d6 {[%clk 0:03:01.7]} 6. Be2 {[%clk 0:02:47.9]} 6... g6 {[%clk 0:03:01.4]}
7. O-O {[%clk 0:02:47.4]} 7... Bg7 {[%clk 0:03:01.8]} 8. Be3 {[%clk 0:02:48.1]}
8... O-O {[%clk 0:03:01.4]} 9. Nb3 {[%clk 0:02:48]} 9... a5 {[%clk 0:02:58.9]}
10. a4 {[%clk 0:02:45.8]} 10... Be6 {[%clk 0:02:58]} 11. Nd4 {[%clk 0:02:43.6]}
11... Nxd4 {[%clk 0:02:51.8]} 12. Bxd4 {[%clk 0:02:44.5]} 12... Nd7 {[%clk
0:02:51.5]} 13. f4 {[%clk 0:02:43.6]} 13... Bxd4+ {[%clk 0:02:50.8]} 14. Qxd4
{[%clk 0:02:44.5]} 14... Qb6 {[%clk 0:02:50.9]} 15. Qxb6 {[%clk 0:02:44.1]}
15... Nxb6 {[%clk 0:02:51.8]} 16. f5 {[%clk 0:02:40.6]} 16... Bd7 {[%clk
0:02:51.7]} 17. f6 {[%clk 0:02:39.5]} 17... exf6 {[%clk 0:02:29.9]} 18. Rxf6
{[%clk 0:02:38.1]} 18... Be6 {[%clk 0:02:29.1]} 19. Rd1 {[%clk 0:02:35.3]} 19...
Rad8 {[%clk 0:02:27.9]} 20. b3 {[%clk 0:02:28.8]} 20... Rc8 {[%clk 0:02:21.7]}
21. Nd5 {[%clk 0:01:56.6]} 21... Bxd5 {[%clk 0:02:15.7]} 22. exd5 {[%clk
0:01:55.7]} 22... Rxc2 {[%clk 0:01:51.5]} 23. Bd3 {[%clk 0:01:55.6]} 23... Rc5
{[%clk 0:01:21.6]} 24. Rxd6 {[%clk 0:01:51.9]} 24... Rxd5 {[%clk 0:00:53.8]} 25.
Rxb6 {[%clk 0:01:45.1]} 25... Rfd8 {[%clk 0:00:52.4]} 26. Rxb7 {[%clk
0:01:42.1]} 26... Rxd3 {[%clk 0:00:52.3]} 27. Rf1 {[%clk 0:01:42.1]} 27... Rf8
{[%clk 0:00:49.2]} 28. Rb5 {[%clk 0:01:40.8]} 28... Rc8 {[%clk 0:00:44.5]} 29.
Rb7 {[%clk 0:01:36.6]} 29... Rf8 {[%clk 0:00:44]} 30. Rf3 {[%clk 0:01:36.2]}
30... Rxf3 {[%clk 0:00:40.7]} 31. gxf3 {[%clk 0:01:37.1]} 31... Rc8 {[%clk
0:00:40.6]} 32. Rb5 {[%clk 0:01:35.6]} 32... Rc3 {[%clk 0:00:41]} 33. Kf2 {[%clk
0:01:35]} 33... Kg7 {[%clk 0:00:41.1]} 34. f4 {[%clk 0:01:27.6]} 34... f5 {[%clk
0:00:40.3]} 35. Ke2 {[%clk 0:01:24.3]} 35... Kh6 {[%clk 0:00:37.9]} 36. Kd2
{[%clk 0:01:16]} 36... Rh3 {[%clk 0:00:37.8]} 37. Kc2 {[%clk 0:01:16]} 37...
Rxh2+ {[%clk 0:00:37.2]} 38. Kc3 {[%clk 0:01:16.7]} 38... Rh3+ {[%clk
0:00:36.3]} 39. Kc2 {[%clk 0:01:17.2]} 39... Rf3 {[%clk 0:00:33.6]} 40. Rxa5
{[%clk 0:01:17.3]} 40... Rxf4 {[%clk 0:00:34.2]} 41. Rb5 {[%clk 0:01:16.3]}
41... Kg5 {[%clk 0:00:33.3]} 42. a5 {[%clk 0:01:16.2]} 42... Rf2+ {[%clk
0:00:32.5]} 43. Kb1 {[%clk 0:01:10.2]} 43... Rf1+ {[%clk 0:00:22.9]} 44. Kb2
{[%clk 0:01:09.8]} 44... Rf2+ {[%clk 0:00:23.8]} 45. Kb1 {[%clk 0:01:09.7]}
45... Rf1+ {[%clk 0:00:19.8]} 46. Kb2 {[%clk 0:01:08.7]} 46... Rf2+ {[%clk
0:00:20.3]} 47. Ka3 {[%clk 0:01:05.6]} 47... Rf1 {[%clk 0:00:20.2]} 48. Rc5
{[%clk 0:01:04.9]} 48... h5 {[%clk 0:00:18.1]} 49. Kb2 {[%clk 0:01:03.4]} 49...
Re1 {[%clk 0:00:15]} 50. a6 {[%clk 0:01:02.9]} 50... Re6 {[%clk 0:00:15.1]} 51.
Ra5 {[%clk 0:00:59.4]} 51... Re8 {[%clk 0:00:14.6]} 52. a7 {[%clk 0:00:59.5]}
52... Ra8 {[%clk 0:00:14.7]} 53. b4 {[%clk 0:00:53.4]} 53... h4 {[%clk
0:00:15.1]} 54. b5 {[%clk 0:00:54]} 54... h3 {[%clk 0:00:15.7]} 55. b6 {[%clk
0:00:54.3]} 55... h2 {[%clk 0:00:15.7]} 56. Ra1 {[%clk 0:00:54.6]} 56... Kg4
{[%clk 0:00:12.3]} 57. Rh1 {[%clk 0:00:51]} 57... Kg3 {[%clk 0:00:10.6]} 58. b7
{[%clk 0:00:50.3]} 1-0

[Event "Late-Titled-Tuesday-Blitz-October-24-2023"]
[Site "Chess.com"]
[Date "2023.10.24"]
[Round "11"]
[White "sergeikim"]
[Black "jk13"]
[Result "1-0"]
[WhiteElo "2611"]
[BlackElo "2660"]
[TimeControl "180+1"]
[EndTime "16:07:18 PDT"]
[Termination "sergeikim won by resignation"]

1. d4 {[%clk 0:03:00.9]} 1... Nf6 {[%clk 0:02:59.6]} 2. c4 {[%clk 0:03:00.9]}
2... e6 {[%clk 0:03:00.2]} 3. Nc3 {[%clk 0:03:01]} 3... Bb4 {[%clk 0:03:00.9]}
4. Qc2 {[%clk 0:03:00.8]} 4... O-O {[%clk 0:03:00.9]} 5. a3 {[%clk 0:03:00.7]}
5... Bxc3+ {[%clk 0:03:00.9]} 6. Qxc3 {[%clk 0:03:01.6]} 6... d5 {[%clk
0:03:01.2]} 7. Nf3 {[%clk 0:03:01.5]} 7... dxc4 {[%clk 0:03:00.1]} 8. Qxc4
{[%clk 0:03:01.8]} 8... b6 {[%clk 0:03:01]} 9. g3 {[%clk 0:03:01.3]} 9... Ba6
{[%clk 0:03:01.2]} 10. Qc2 {[%clk 0:03:00.7]} 10... Nbd7 {[%clk 0:02:59.7]} 11.
Qc6 {[%clk 0:02:58.2]} 11... Rb8 {[%clk 0:02:56.9]} 12. Bg2 {[%clk 0:02:55.6]}
12... Bb7 {[%clk 0:02:53]} 13. Qa4 {[%clk 0:02:55.4]} 13... Be4 {[%clk
0:02:50.4]} 14. O-O {[%clk 0:02:52.3]} 14... c5 {[%clk 0:02:49.9]} 15. Rd1
{[%clk 0:02:48]} 15... Qc8 {[%clk 0:02:42.4]} 16. Bf4 {[%clk 0:02:41.6]} 16...
Rb7 {[%clk 0:02:42.7]} 17. Rac1 {[%clk 0:02:35.6]} 17... Qa8 {[%clk 0:02:34.1]}
18. Bd6 {[%clk 0:02:16.2]} 18... Rc8 {[%clk 0:02:30.1]} 19. dxc5 {[%clk
0:02:15.2]} 19... bxc5 {[%clk 0:02:28.5]} 20. b4 {[%clk 0:02:09.2]} 20... Nb6
{[%clk 0:02:07.1]} 21. Qa5 {[%clk 0:01:52.9]} 21... cxb4 {[%clk 0:01:44]} 22.
Bxb4 {[%clk 0:01:51.2]} 22... Nbd5 {[%clk 0:01:41.4]} 23. h3 {[%clk 0:01:29.9]}
23... h6 {[%clk 0:01:32.5]} 24. Be1 {[%clk 0:01:24.3]} 24... Rxc1 {[%clk
0:01:26.7]} 25. Rxc1 {[%clk 0:01:24]} 25... Qb8 {[%clk 0:01:23.8]} 26. Kh2
{[%clk 0:01:15.5]} 26... Rb2 {[%clk 0:01:17.5]} 27. Qa6 {[%clk 0:01:08.5]} 27...
Qb6 {[%clk 0:01:05]} 28. Qc8+ {[%clk 0:00:58]} 28... Kh7 {[%clk 0:01:04.9]} 29.
Bf1 {[%clk 0:00:55.8]} 29... Bxf3 {[%clk 0:00:44.2]} 30. exf3 {[%clk 0:00:55.4]}
30... Rxf2+ {[%clk 0:00:44]} 31. Bxf2 {[%clk 0:00:53]} 31... Qxf2+ {[%clk
0:00:44.9]} 32. Bg2 {[%clk 0:00:53.1]} 32... Ne3 {[%clk 0:00:45.1]} 33. Rg1
{[%clk 0:00:51.1]} 33... Nfd5 {[%clk 0:00:28.7]} 34. Qb8 {[%clk 0:00:44.7]}
34... h5 {[%clk 0:00:24.5]} 35. h4 {[%clk 0:00:43.3]} 35... g6 {[%clk 0:00:23]}
36. Qb7 {[%clk 0:00:35.4]} 36... Kg7 {[%clk 0:00:19.6]} 37. Qb1 {[%clk
0:00:33.9]} 37... Nf5 {[%clk 0:00:15.9]} 38. Qe1 {[%clk 0:00:32.5]} 38... Qc2
{[%clk 0:00:14.5]} 39. Qe5+ {[%clk 0:00:30]} 39... Kg8 {[%clk 0:00:14.4]} 40.
Re1 {[%clk 0:00:27.1]} 40... Qb3 {[%clk 0:00:12.7]} 41. Re2 {[%clk 0:00:25.1]}
41... Nde3 {[%clk 0:00:12.5]} 42. Rb2 {[%clk 0:00:22.4]} 42... f6 {[%clk
0:00:06.1]} 43. Qxf6 {[%clk 0:00:21.3]} 43... Nxg3 {[%clk 0:00:01.8]} 44. Rxb3
{[%clk 0:00:20.3]} 1-0

[Event "Late-Titled-Tuesday-Blitz-October-24-2023"]
[Site "Chess.com"]
[Date "2023.10.24"]
[Round "11"]
[White "AsselLesbekova"]
[Black "Mikhal867"]
[Result "0-1"]
[WhiteElo "2309"]
[BlackElo "2442"]
[TimeControl "180+1"]
[EndTime "16:07:22 PDT"]
[Termination "Mikhal867 won by resignation"]

1. e4 {[%clk 0:03:00.9]} 1... g6 {[%clk 0:02:51.7]} 2. d4 {[%clk 0:02:58.4]}
2... Bg7 {[%clk 0:02:48.3]} 3. Nc3 {[%clk 0:02:58.4]} 3... d6 {[%clk 0:02:48]}
4. Bg5 {[%clk 0:02:46.6]} 4... h6 {[%clk 0:02:46.6]} 5. Bf4 {[%clk 0:02:42.3]}
5... g5 {[%clk 0:02:45.4]} 6. Bg3 {[%clk 0:02:40]} 6... Nc6 {[%clk 0:02:43.8]}
7. Nge2 {[%clk 0:02:34.8]} 7... Nf6 {[%clk 0:02:40.8]} 8. h4 {[%clk 0:02:28.4]}
8... Nh5 {[%clk 0:02:32]} 9. hxg5 {[%clk 0:02:25.5]} 9... hxg5 {[%clk
0:02:22.4]} 10. Qd2 {[%clk 0:02:17.6]} 10... Nxg3 {[%clk 0:02:19.9]} 11. Rxh8+
{[%clk 0:02:18.5]} 11... Bxh8 {[%clk 0:02:19.6]} 12. fxg3 {[%clk 0:02:10.9]}
12... e5 {[%clk 0:02:11.1]} 13. d5 {[%clk 0:02:05.3]} 13... Nd4 {[%clk
0:02:11.3]} 14. Nxd4 {[%clk 0:02:04.6]} 14... exd4 {[%clk 0:02:11.1]} 15. Ne2
{[%clk 0:02:05]} 15... Qe7 {[%clk 0:01:53.7]} 16. O-O-O {[%clk 0:01:58.3]} 16...
Qxe4 {[%clk 0:01:47.2]} 17. Nxd4 {[%clk 0:01:57.9]} 17... Qxd4 {[%clk 0:01:43]}
18. Qxd4 {[%clk 0:01:57.1]} 18... Bxd4 {[%clk 0:01:41.5]} 19. Rxd4 {[%clk
0:01:58]} 19... Bd7 {[%clk 0:01:29.7]} 20. Re4+ {[%clk 0:01:54.3]} 20... Kf8
{[%clk 0:01:29]} 21. Bc4 {[%clk 0:01:38.5]} 21... Re8 {[%clk 0:01:27.3]} 22.
Rxe8+ {[%clk 0:01:37.9]} 22... Bxe8 {[%clk 0:01:26.9]} 23. Kd2 {[%clk
0:01:37.1]} 23... Kg7 {[%clk 0:01:27]} 24. g4 {[%clk 0:01:34.4]} 24... Bd7
{[%clk 0:01:25.3]} 25. Be2 {[%clk 0:01:33.9]} 25... Kf6 {[%clk 0:01:25.5]} 26.
Ke3 {[%clk 0:01:33]} 26... Ke5 {[%clk 0:01:25.7]} 27. Bf3 {[%clk 0:01:33]} 27...
b5 {[%clk 0:01:16.6]} 28. b3 {[%clk 0:01:29.6]} 28... b4 {[%clk 0:01:07.9]} 29.
g3 {[%clk 0:01:23]} 29... Bb5 {[%clk 0:01:05.8]} 30. Bg2 {[%clk 0:01:04.2]}
30... a5 {[%clk 0:01:04.7]} 31. Bf3 {[%clk 0:01:00.2]} 31... Ba6 {[%clk
0:01:01.8]} 32. Be4 {[%clk 0:00:50.3]} 32... Bb7 {[%clk 0:01:00.4]} 33. Bf5
{[%clk 0:00:44]} 33... Bxd5 {[%clk 0:00:59.2]} 34. Kd3 {[%clk 0:00:44.1]} 34...
c5 {[%clk 0:00:37.5]} 35. c3 {[%clk 0:00:31.4]} 35... Bb7 {[%clk 0:00:35.6]} 36.
Bd7 {[%clk 0:00:24.9]} 36... Ba6+ {[%clk 0:00:34.2]} 37. c4 {[%clk 0:00:21.3]}
37... d5 {[%clk 0:00:33.6]} 38. Be8 {[%clk 0:00:20.3]} 38... dxc4+ {[%clk
0:00:28.3]} 39. bxc4 {[%clk 0:00:21.2]} 39... Bc8 {[%clk 0:00:27.3]} 40. Bxf7
{[%clk 0:00:20.6]} 40... Bxg4 {[%clk 0:00:26.5]} 41. Kc2 {[%clk 0:00:20.7]}
41... Be6 {[%clk 0:00:26.1]} 42. Bxe6 {[%clk 0:00:18]} 42... Kxe6 {[%clk
0:00:25.9]} 43. Kb3 {[%clk 0:00:18.6]} 43... Ke5 {[%clk 0:00:23.5]} 44. Ka4
{[%clk 0:00:18.8]} 44... Kd4 {[%clk 0:00:23.4]} 45. Kb5 {[%clk 0:00:16]} 45...
a4 {[%clk 0:00:20.2]} 46. Kxa4 {[%clk 0:00:14.7]} 46... Kxc4 {[%clk 0:00:20.3]}
47. g4 {[%clk 0:00:14.3]} 47... Kc3 {[%clk 0:00:20.1]} 48. Kb5 {[%clk
0:00:13.9]} 48... c4 {[%clk 0:00:20.5]} 49. Kc5 {[%clk 0:00:13.4]} 49... b3
{[%clk 0:00:20.8]} 50. Kd5 {[%clk 0:00:14.1]} 50... bxa2 {[%clk 0:00:20.4]} 0-1

[Event "Late-Titled-Tuesday-Blitz-October-24-2023"]
[Site "Chess.com"]
[Date "2023.10.24"]
[Round "11"]
[White "Alex_Sahakyan2006"]
[Black "Grischuk"]
[Result "1-0"]
[WhiteElo "2796"]
[BlackElo "2977"]
[TimeControl "180+1"]
[EndTime "16:07:23 PDT"]
[Termination "Alex_Sahakyan2006 won by resignation"]

1. e4 {[%clk 0:03:00.9]} 1... c5 {[%clk 0:01:04.8]} 2. Nf3 {[%clk 0:02:57.9]}
2... d6 {[%clk 0:01:04.3]} 3. Bb5+ {[%clk 0:02:55.9]} 3... Nd7 {[%clk
0:01:02.7]} 4. a4 {[%clk 0:02:55.4]} 4... Nf6 {[%clk 0:01:02.1]} 5. Nc3 {[%clk
0:02:54.8]} 5... g6 {[%clk 0:01:02.6]} 6. O-O {[%clk 0:02:54.3]} 6... Bg7 {[%clk
0:01:03.2]} 7. d4 {[%clk 0:02:55]} 7... cxd4 {[%clk 0:01:02.7]} 8. Qxd4 {[%clk
0:02:54.2]} 8... O-O {[%clk 0:01:02.4]} 9. Rd1 {[%clk 0:02:51.4]} 9... a6 {[%clk
0:00:58]} 10. Be2 {[%clk 0:02:48.4]} 10... Qc7 {[%clk 0:00:46.5]} 11. Qb4 {[%clk
0:02:34.2]} 11... b6 {[%clk 0:00:45.8]} 12. h3 {[%clk 0:02:10.7]} 12... Bb7
{[%clk 0:00:45.5]} 13. Be3 {[%clk 0:02:05.1]} 13... Nc5 {[%clk 0:00:41.4]} 14.
e5 {[%clk 0:01:52.5]} 14... a5 {[%clk 0:00:40.7]} 15. Qh4 {[%clk 0:01:46.1]}
15... dxe5 {[%clk 0:00:39.8]} 16. Nb5 {[%clk 0:01:45.8]} 16... Qc6 {[%clk
0:00:37.9]} 17. Bf1 {[%clk 0:01:40.1]} 17... Nd5 {[%clk 0:00:33.1]} 18. Bh6
{[%clk 0:01:35.6]} 18... Bxh6 {[%clk 0:00:29]} 19. Qxh6 {[%clk 0:01:36.5]} 19...
f6 {[%clk 0:00:29.6]} 20. Bc4 {[%clk 0:00:51.8]} 20... e6 {[%clk 0:00:29.1]} 21.
Nh4 {[%clk 0:00:52.3]} 21... Rf7 {[%clk 0:00:28.8]} 22. Ra3 {[%clk 0:00:42.7]}
22... Raf8 {[%clk 0:00:21.9]} 23. Rg3 {[%clk 0:00:41.6]} 23... Rg7 {[%clk
0:00:22.2]} 24. Nf5 {[%clk 0:00:34.7]} 24... Rd7 {[%clk 0:00:09.3]} 25. Nbd6
{[%clk 0:00:31.8]} 25... exf5 {[%clk 0:00:03.3]} 26. Bxd5+ {[%clk 0:00:29.3]}
26... Qxd5 {[%clk 0:00:04.2]} 27. Rxd5 {[%clk 0:00:29.4]} 27... Bxd5 {[%clk
0:00:05.1]} 28. Nxf5 {[%clk 0:00:28.9]} 28... Be4 {[%clk 0:00:04.1]} 29. Ne3
{[%clk 0:00:18.7]} 29... f5 {[%clk 0:00:04.3]} 30. Nc4 {[%clk 0:00:16.9]} 30...
f4 {[%clk 0:00:04.5]} 31. Rg5 {[%clk 0:00:14.4]} 31... f3 {[%clk 0:00:04.5]} 32.
Nxe5 {[%clk 0:00:13.5]} 32... Rd1+ {[%clk 0:00:04]} 33. Kh2 {[%clk 0:00:13.8]}
33... fxg2 {[%clk 0:00:04.9]} 34. Rxg2 {[%clk 0:00:13.9]} 34... Bxg2 {[%clk
0:00:04.8]} 35. Kxg2 {[%clk 0:00:14.8]} 35... Rd6 {[%clk 0:00:04.2]} 36. Ng4
{[%clk 0:00:14.8]} 36... Rd5 {[%clk 0:00:03.8]} 37. Qe3 {[%clk 0:00:14.7]} 37...
h5 {[%clk 0:00:03.4]} 38. Nh6+ {[%clk 0:00:11.6]} 38... Kg7 {[%clk 0:00:03]} 39.
Qe7+ {[%clk 0:00:12.1]} 39... Kxh6 {[%clk 0:00:02.7]} 40. Qxf8+ {[%clk
0:00:12.5]} 40... Kg5 {[%clk 0:00:03.6]} 41. h4+ {[%clk 0:00:12.1]} 41... Kg4
{[%clk 0:00:01.4]} 42. Qf3+ {[%clk 0:00:12.3]} 1-0

[Event "Late-Titled-Tuesday-Blitz-October-24-2023"]
[Site "Chess.com"]
[Date "2023.10.24"]
[Round "11"]
[White "gahryman"]
[Black "jcibarra"]
[Result "1-0"]
[WhiteElo "2703"]
[BlackElo "2895"]
[TimeControl "180+1"]
[EndTime "16:07:27 PDT"]
[Termination "gahryman won on time"]

1. e4 {[%clk 0:03:00.9]} 1... Nc6 {[%clk 0:02:59.7]} 2. Nf3 {[%clk 0:03:00.7]}
2... d6 {[%clk 0:02:59.6]} 3. d4 {[%clk 0:03:00.5]} 3... Nf6 {[%clk 0:02:59.9]}
4. d5 {[%clk 0:02:53.1]} 4... Nb8 {[%clk 0:02:58.4]} 5. Nc3 {[%clk 0:02:50.7]}
5... g6 {[%clk 0:02:58.2]} 6. h3 {[%clk 0:02:43.9]} 6... Bg7 {[%clk 0:02:57.6]}
7. Be2 {[%clk 0:02:43.6]} 7... O-O {[%clk 0:02:57.5]} 8. O-O {[%clk 0:02:44.2]}
8... c6 {[%clk 0:02:54.1]} 9. Re1 {[%clk 0:02:44]} 9... Nbd7 {[%clk 0:02:53.6]}
10. Bf1 {[%clk 0:02:41.6]} 10... Nc5 {[%clk 0:02:52.7]} 11. Bg5 {[%clk
0:02:18.3]} 11... cxd5 {[%clk 0:02:43]} 12. exd5 {[%clk 0:02:17.8]} 12... h6
{[%clk 0:02:41]} 13. Bf4 {[%clk 0:02:17.6]} 13... Bf5 {[%clk 0:02:35.8]} 14. Qd2
{[%clk 0:02:07.6]} 14... g5 {[%clk 0:02:32.6]} 15. Be3 {[%clk 0:01:46.4]} 15...
Rc8 {[%clk 0:02:28]} 16. Bd4 {[%clk 0:01:43.6]} 16... a6 {[%clk 0:02:20.2]} 17.
Re3 {[%clk 0:01:38.8]} 17... Re8 {[%clk 0:02:10.8]} 18. Rae1 {[%clk 0:01:38]}
18... b5 {[%clk 0:02:05.5]} 19. a3 {[%clk 0:01:31]} 19... Ncd7 {[%clk
0:01:58.2]} 20. Bd3 {[%clk 0:01:16.3]} 20... Bxd3 {[%clk 0:01:53.1]} 21. Qxd3
{[%clk 0:01:17.2]} 21... Rc4 {[%clk 0:01:30.9]} 22. a4 {[%clk 0:01:07]} 22...
Nc5 {[%clk 0:01:21.5]} 23. Bxc5 {[%clk 0:01:03.6]} 23... Rxc5 {[%clk 0:01:21.2]}
24. axb5 {[%clk 0:01:03.6]} 24... axb5 {[%clk 0:01:21.3]} 25. Nd4 {[%clk
0:00:29.4]} 25... b4 {[%clk 0:01:20.8]} 26. Ne4 {[%clk 0:00:25.8]} 26... Rxd5
{[%clk 0:01:14.3]} 27. c4 {[%clk 0:00:20]} 27... bxc3 {[%clk 0:01:10.7]} 28.
Nxc3 {[%clk 0:00:19.9]} 28... Rc5 {[%clk 0:01:04.7]} 29. Nf5 {[%clk 0:00:19.2]}
29... Bf8 {[%clk 0:01:00]} 30. b4 {[%clk 0:00:17.5]} 30... Rxc3 {[%clk
0:00:47.1]} 31. Qxc3 {[%clk 0:00:16.8]} 31... Nd5 {[%clk 0:00:47.7]} 32. Qc6
{[%clk 0:00:13.5]} 32... Nxe3 {[%clk 0:00:47.4]} 33. Rxe3 {[%clk 0:00:14.4]}
33... e6 {[%clk 0:00:45.6]} 34. b5 {[%clk 0:00:14.7]} 34... Qc8 {[%clk
0:00:40.7]} 35. Nd4 {[%clk 0:00:08.7]} 35... Bg7 {[%clk 0:00:19.6]} 36. Qxc8
{[%clk 0:00:08.4]} 36... Rxc8 {[%clk 0:00:20.5]} 37. Nc6 {[%clk 0:00:09.1]}
37... Rc7 {[%clk 0:00:21.1]} 38. Rb3 {[%clk 0:00:08.3]} 38... Rb7 {[%clk
0:00:21.4]} 39. b6 {[%clk 0:00:07.1]} 39... Be5 {[%clk 0:00:13.3]} 40. Na5
{[%clk 0:00:06.9]} 40... Rb8 {[%clk 0:00:13.5]} 41. b7 {[%clk 0:00:07.5]} 41...
d5 {[%clk 0:00:14]} 42. Nc6 {[%clk 0:00:08]} 1-0